Cogmind - Beta 17.1 @@@ ROGUE MODE // 2026.08.28 @ 20:40:11 Player: OBLIQUE Result: Destroyed by P-80 Master with Gamma Rifle Performance ------------- Evolutions (9) 4500 Regions Visited (17) 3400 Robots Destroyed (182) 910 Value Destroyed (9079) 9079 Prototype IDs (66) 1320 Alien Tech Used (9) 1800 Bonus (11990) 11990 TOTAL SCORE: 32999 Bonus ------- High Alert Combat Kills 144 Follower Combat Kills 1740 Registered with UFD 300 Met Optimus in HQ 500 Met Warlord at Base 500 MAIN.C Attacked Warlord 500 Warlord Defense Kills 824 Met R17 at Cetus 500 Used Core Reset Matrix 3000 Met R17 at Research 2000 Met Sigix 2000 Friendly Fire -18 Cogmind --------- Core Integrity 0/1600 Matter 274/300 Energy 100/100 System Corruption 3% Temperature Cool (0) Movement Core (50) Location -1/Access Parts ------- > --- POWER (3) -------- (None) > --- PROPULSION (8) --- (None) > --- UTILITY (8) ------ Enhanced Optical Array Experimental Signal Interpreter Terrain Scan Processor > --- WEAPON (6) ------- (None) > --- INVENTORY (5) ---- Huge Storage Unit Energy Well (346) Sigix Containment Pod Peak State ------------ > --- POWER ------------ Micro Antimatter Reactor Matter Drive > --- PROPULSION ------- Advanced Medium Treads Armored Heavy Treads Armored Heavy Treads Advanced Heavy Treads > --- UTILITY ---------- Advanced Heat Sink Advanced Heat Sink Advanced Cooling System Huge Storage Unit Energy Well Experimental Signal Interpreter Improved Remote Shield Long-range Tractor Beam > --- WEAPON ----------- Quantum Rifle Heavy Phase Cannon Enhanced Nova Cannon Enhanced Nova Cannon Helical Railgun Linear Accelerator > --- INVENTORY -------- Micro Antimatter Reactor Biometal Medium Treads Advanced Heat Sink Matter Compressor Dimensional Node Initializer Terrabomb Core Cannon BFG-9k Vortex Edition Sigix Containment Pod [Rating: 187] Favorites ----------- Power Neutrino Core Engine Ion Engine Power Core Neutrino Core Reactor Micro Antimatter Reactor Propulsion Compact Wheel Treads Spiked Treads Wheel Compact Wheel Flight Unit Field Propulsion Array Utility Huge Storage Unit Device Advanced Sensor Array Storage Huge Storage Unit Processor Experimental Signal Interpreter Hackware Improved Hacking Suite Protection Hardened Light Armor Plating Artifact Phase Redirector Weapon Subdweller Beam Cannon Energy Gun Advanced Variable Charge Gun Energy Cannon Subdweller Beam Cannon Ballistic Gun Heavy Assault Rifle Ballistic Cannon Heavy Flak Cannon Launcher Subdweller Shrapnel Launcher Special Weapon CPS Tube Impact Weapon Core Stripper Special Melee Weapon Datajack Build | -11 -10 -10 -10 -9 -6 -6 -6 -5 -5 -5 -5 -4 -4 -3 -3 -2 -1 ------- Run | Yrd Mat Min Sub Scr Fac Ext Cet Fac Upp Upp War Pro Fac Res Qua Res Acc Slots Evolved 18 | . . . . . 8 . . 2 . . . . 2 2 . 2 2 Power 2 | . . . . . . . . 1 . . . . . . . . 1 Propulsion 6 | . . . . . 2 . . . . . . . . 1 . 2 1 Utility 6 | . . . . . 5 . . . . . . . . 1 . . . Weapon 4 | . . . . . 1 . . 1 . . . . 2 . . . . Parts Attached 193 | 6 12 4 16 3 29 12 12 9 1 3 6 1 11 11 16 31 10 Power 25 | 1 1 . 2 1 3 1 1 2 . . 1 . 1 2 3 6 . Engine 7 | 1 1 . 2 1 . . . 1 . . . . . . . 1 . Core 7 | . . . . . 3 1 1 1 . . 1 . . . . . . Reactor 11 | . . . . . . . . . . . . . 1 2 3 5 . Propulsion 39 | 2 3 . 6 . 4 2 2 . . . 2 . 1 3 2 7 5 Treads 21 | 2 2 . 3 . 3 2 1 . . . 2 . . 1 2 2 1 Leg . | . . . . . . . . . . . . . . . . . . Wheel 17 | . 1 . 3 . 1 . 1 . . . . . 1 2 . 5 3 Hover . | . . . . . . . . . . . . . . . . . . Flight 1 | . . . . . . . . . . . . . . . . . 1 Utility 64 | 1 5 . 1 1 16 5 5 4 1 1 1 . 5 3 7 6 2 Device 36 | . 1 . . 1 10 3 2 2 1 1 . . 5 2 3 4 1 Storage 4 | 1 1 . . . 1 . . . . . . . . . 1 . . Processor 11 | . 1 . . . 3 1 1 1 . . 1 . . . . 2 1 Hackware 1 | . . . . . 1 . . . . . . . . . . . . Protection 11 | . 2 . 1 . 1 1 2 1 . . . . . 1 2 . . Artifact 1 | . . . . . . . . . . . . . . . 1 . . Weapon 65 | 2 3 4 7 1 6 4 4 3 . 2 2 1 4 3 4 12 3 Energy Gun 9 | 1 . . . . . . 1 . . . . . . 2 . 4 1 Energy Cannon 18 | . 1 1 3 1 . . 1 1 . . . . 3 1 1 3 2 Ballistic Gun 12 | 1 2 1 . . 1 . 1 . . . . . 1 . 1 4 . Ballistic Cannon 13 | . . . 1 . 3 2 . 1 . 2 1 1 . . 1 1 . Launcher 8 | . . 2 3 . . . 1 1 . . 1 . . . . . . Special Weapon 2 | . . . . . 1 1 . . . . . . . . . . . Impact Weapon 1 | . . . . . . . . . . . . . . . 1 . . Slashing Weapon . | . . . . . . . . . . . . . . . . . . Piercing Weapon . | . . . . . . . . . . . . . . . . . . Special Melee Weapon 2 | . . . . . 1 1 . . . . . . . . . . . Unidentified Prototypes 14 | . 1 . . . 1 . 4 1 . . . . . . 6 . 1 Parts Lost 93 | . . . 4 . 1 8 11 . . . 2 2 5 2 6 27 25 Power 15 | . . . 2 . . 1 . . . . 1 1 . 1 . 5 4 Propulsion 25 | . . . 1 . 1 2 4 . . . 1 . . . 1 6 9 Utility 22 | . . . . . . 5 4 . . . . 1 1 . 3 5 3 Weapon 31 | . . . 1 . . . 3 . . . . . 4 1 2 11 9 Highest Loss Streak 18 | . . . 1 . 1 5 7 . . . 2 2 4 1 3 18 16 To Critical Strikes 10 | . . . . . . . 5 . . . 1 . . . . 3 1 Average Backups 18 | 1 10 23 24 19 22 22 21 24 23 22 17 17 17 16 15 7 8 Power . | . 1 2 1 . 1 1 . . . . . . . . . 1 1 Propulsion 2 | . 2 5 5 3 . 1 . . 1 1 . . 1 2 2 . . Utility 9 | . 2 7 9 10 15 13 12 15 12 11 9 9 11 10 6 1 . Weapon 4 | . 4 7 8 3 1 3 5 7 8 8 6 6 3 2 3 2 3 Tool/Special . | . . . . . . . . . . . . . . . . . . Unused Backups 72 | . 1 . 3 18 9 7 3 6 2 4 7 . 2 2 3 1 4 Power 7 | . . . . 2 2 2 . . . . 1 . . . . . . Propulsion 5 | . . . 1 2 . 1 . . . . 1 . . . . . . Utility 33 | . . . . 8 6 3 2 4 1 2 1 . 2 2 1 1 . Weapon 23 | . 1 . 1 6 1 1 1 2 1 2 4 . . . . . 3 Tool/Special 4 | . . . 1 . . . . . . . . . . . 2 . 1 Average Slot Usage (%) 84 | . 99 100 99 70 97 90 89 87 88 88 87 82 80 85 87 65 65 Engine 5 | . 14 14 13 7 2 . . 4 5 5 5 . . . . . . Core 1 | . . . . . 4 7 5 5 5 5 4 5 5 1 . . . Reactor 1 | . . . . . . . . . . . . . 1 5 9 7 6 Treads 12 | . 21 14 14 14 17 10 11 5 5 5 7 17 13 6 8 11 . Wheel 8 | . 6 14 14 14 7 6 5 5 5 5 3 . 1 7 5 2 12 Device 7 | . . . . 2 23 19 13 11 10 10 9 10 9 13 13 12 9 Storage 9 | . 14 14 14 13 5 5 5 5 5 5 5 5 5 4 5 6 4 Processor 8 | . . . . . 10 12 20 17 17 17 18 23 18 14 6 4 14 Protection 5 | . 12 14 14 2 2 2 4 4 5 5 5 . 2 4 6 . . Energy Gun 2 | . . . . . . . . 5 5 5 5 5 2 5 8 3 8 Energy Cannon 8 | . 2 4 14 9 11 . 1 10 11 9 . . 6 15 12 7 6 Ballistic Gun 3 | . 24 20 3 . . . 4 . . . . . 2 . . 6 3 Ballistic Cannon 3 | . . . 2 . 6 18 13 1 . 5 11 10 7 1 3 1 . Launcher 2 | . . 3 7 5 . 1 . 3 5 . . . . . 1 . . Peak Build Rating 187 | 6 14 15 20 23 98 102 98 114 114 114 133 133 143 153 175 187 132 Average Rating 69 | 4 11 14 16 13 59 96 79 109 113 113 117 124 134 144 162 135 103 On Entrance 84 | . 6 14 15 18 23 97 98 95 110 113 114 133 124 138 153 157 111 Avg Prop Armor Cover (%) 14 | . 8 9 9 21 17 9 11 9 9 8 9 . 10 9 9 . 36 Naked Turns . | . . . . . . . . . . . . . . . . . . Heaviest Build 194 | 14 96 98 106 108 141 149 125 147 153 147 163 163 187 194 194 173 157 Greatest Support 220 | 40 40 16 20 16 63 44 80 80 28 80 134 134 134 54 150 220 40 Greatest Overweight (x) 14 | . 5 6 6 6 7 5 4 5 5 5 5 1 6 6 6 7 14 Average Overweight (x) 4 | . 2 5 5 4 6 3 3 4 5 3 3 1 2 3 3 . 2 Largest Inventory Capacity 25 | 8 25 25 25 25 25 25 25 25 25 25 25 25 25 25 25 25 25 Average Capacity 24 | 6 16 25 25 24 25 25 24 25 25 25 25 25 25 25 25 24 21 Most Carried 25 | 2 22 25 25 25 25 25 25 25 25 25 25 25 25 25 25 19 22 Average Carried 21 | 1 10 23 24 19 22 24 21 24 24 24 23 24 24 24 24 15 15 Final Capacity 25 | 8 25 25 25 25 25 25 25 25 25 25 25 25 25 25 25 25 5 Final Carried 25 | 2 22 25 25 25 25 25 23 25 25 25 25 25 25 25 18 15 4 Class Distribution -------------------- 46% | Mutant 17% | Scavenger-Executioner 13% | Scavenger-Skirmisher 7% | Scavenger-Tank 4% | Derelict-Skirmisher 3% | Skirmisher Dominant Class ---------------- Mutant | -10/Materials Mutant | -10/Mines Mutant | -10/Subcaves Mutant | -9/Scraptown Derelict-Skirmisher | -6/Factory Skirmisher | -6/Extension Gunner | -6/Cetus Scavenger-Tank | -5/Factory Scavenger-Skirmisher | -5/Upper Caves Scavenger-Skirmisher | -5/Upper Caves Scavenger-Assassin | -5/Warlord Scavenger-Skirmisher | -4/Proximity Caves Scavenger-Executioner | -4/Factory Scavenger-Executioner | -3/Research Scavenger-Executioner | -3/Quarantine Scavenger-Executioner | -2/Research Scavenger-Executioner | -1/Access Resources | -11 -10 -10 -10 -9 -6 -6 -6 -5 -5 -5 -5 -4 -4 -3 -3 -2 -1 ----------- Run | Yrd Mat Min Sub Scr Fac Ext Cet Fac Upp Upp War Pro Fac Res Qua Res Acc Matter Collected 9172 | 259 469 204 498 73 974 1442 521 238 50 214 581 279 1099 246 1044 822 159 Remotely 2096 | . . . . . 123 675 . . . . . . 851 . 447 . . Salvage Created 7071 | . 450 128 309 . 715 814 169 456 79 150 140 146 881 126 1048 1254 206 Parts 339 | . 39 10 13 . 31 22 6 18 5 8 7 8 44 5 51 61 11 Haulers Intercepted 2 | . 2 . . . . . . . . . . . . . . . . Recyclers Shooed 20 | . . . . . 4 8 . 2 . . . . 3 . . 2 1 Parts Field Recycled . | . . . . . . . . . . . . . . . . . . Retrieved Matter . | . . . . . . . . . . . . . . . . . . Parts Self-Destructed 33 | . . . 12 . . . . . 3 8 . 10 . . . . . Prevented 5 | . . . . . . . . . 2 . . 3 . . . . . Parts Restored 1 | . 1 . . . . . . . . . . . . . . . . Broken 1 | . 1 . . . . . . . . . . . . . . . . Kills | -11 -10 -10 -10 -9 -6 -6 -6 -5 -5 -5 -5 -4 -4 -3 -3 -2 -1 ------- Run | Yrd Mat Min Sub Scr Fac Ext Cet Fac Upp Upp War Pro Fac Res Qua Res Acc Combat Hostiles Destroyed 145 | . 12 5 12 . 13 15 6 6 1 4 6 7 18 2 21 14 3 Guns 21 | . 4 . . . . . 1 2 . 2 . . 2 . 7 3 . Cannons 93 | . 8 . 6 . 8 15 5 4 1 2 6 3 12 1 8 11 3 AOE 28 | . . 5 5 . 5 . . . . . . 4 4 . 5 . . Classes Destroyed 19 | . 7 1 2 . 1 5 . . . . 1 . 1 . 1 . . Worker 6 | . 1 . . . . . . . . . . . 1 . . 3 1 Builder 8 | . 1 . . . . 2 . . . . . . 2 . 1 1 1 Hauler 2 | . 2 . . . . . . . . . . . . . . . . Recycler 11 | . . 1 . . 3 3 . 1 . . . . 1 . . 2 . Mechanic 1 | . 1 . . . . . . . . . . . . . . . . Operator 1 | . . . . . . 1 . . . . . . . . . . . Turret 2 | . . . 2 . . . . . . . . . . . . . . Watcher 4 | . 2 . . . . . 2 . . . . . . . . . . Swarmer 37 | . 9 3 2 . 8 2 . . . . . 5 4 . 4 . . Grunt 26 | . 3 2 . . 3 6 . . . . 2 . 4 . 3 3 . Duelist 2 | . . . . . . 1 . . . . . . . . . 1 . Protector 1 | . . . . . . . . . . . . . 1 . . . . Researcher 1 | . . . . . . . . . . . . . . . 1 . . Sentry 6 | . . . . . . 2 . 1 1 . . . 2 . . . . Hunter 28 | . . . . . . 3 . 2 . . 2 2 3 2 6 6 2 Programmer 28 | . . . . . 2 . . 3 . 4 1 . 5 . 8 4 1 Behemoth 1 | . . . . . . 1 . . . . . . . . . . . Cetus Guard 6 | . . . . . . . 6 . . . . . . . . . . Striker 1 | . . . . . . . . . . . 1 . . . . . . Subdweller 10 | . . . 10 . . . . . . . . . . . . . . Best Kill Streak 9 | . 4 5 2 . 6 8 4 3 1 2 3 5 8 2 4 9 2 Combat Bots Only 6 | . 3 5 2 . 6 4 4 3 1 2 3 5 5 2 3 6 1 Max Kills in Single Turn 3 | . 1 3 1 . 3 2 1 1 1 2 1 2 3 1 3 2 1 Gunslinging . | . . . . . . . . . . . . . . . . . . Exploded 3 | . . 3 1 . 3 . . . . . . 2 2 . 2 . . Melee . | . . . . . . . . . . . . . . . . . . Uniques/NPCs Destroyed . | . . . . . . . . . . . . . . . . . . Combat | -11 -10 -10 -10 -9 -6 -6 -6 -5 -5 -5 -5 -4 -4 -3 -3 -2 -1 -------- Run | Yrd Mat Min Sub Scr Fac Ext Cet Fac Upp Upp War Pro Fac Res Qua Res Acc Hostile Shots Fired 1745 | . 43 8 54 . 82 150 91 21 2 36 94 24 153 15 261 328 383 Missed 550 | . 13 3 19 . 24 39 33 4 1 8 34 9 56 4 87 85 131 Hits 1195 | . 30 5 35 . 58 111 58 17 1 28 60 15 97 11 174 243 252 Melee 2 | . . . . . . . . . . . . . . . . 2 . Projectile 1193 | . 30 5 35 . 58 111 58 17 1 28 60 15 97 11 174 241 252 AOE 5 | . . . 4 . . . . . . . . . . . . . 1 Critical Strikes 54 | . . . . . . 5 12 . 1 2 1 . 4 . 14 11 4 Part Disruptions 3 | . . . . . . . . 1 . . . . 1 . 1 . . Damage Taken 22768 | . 334 58 966 . 697 2125 1470 398 22 562 1137 205 1680 444 3676 5303 3691 Core 3663 | . 26 . 57 . 54 125 102 46 . 42 136 7 38 120 437 933 1540 Absorbed by Shields 1608 | . . . . . 213 223 104 . . . 714 35 319 . . . . Reduced by Siege Mode 280 | . . . . . . . . . . . . . . . . 280 . Redirected to Core 244 | . . . . . . . . . . . . . . . 244 . . Regen/Repaired (Parts) 198 | . 154 . . . . . . . . . 44 . . . . . . Core Remaining (%) 68 | 100 . . . 66 . . 66 . . . . 76 96 . 45 28 . Volleys Fired 506 | . 39 6 66 . 42 48 32 25 5 12 19 10 49 6 66 50 31 Largest 6 | . 2 2 2 . 4 4 4 3 2 4 4 3 5 4 6 6 3 Hottest 572 | . 91 91 120 . 200 157 178 245 165 258 201 200 328 398 572 516 300 Shots Fired 1251 | . 78 10 102 . 88 187 86 41 8 37 44 23 130 18 210 153 36 Gun 391 | . 57 1 6 . 13 14 22 14 . 10 4 8 32 9 91 100 10 Cannon 810 | . 21 1 80 . 69 171 63 27 8 27 38 13 95 9 109 53 26 Launcher 46 | . . 8 16 . 4 . 1 . . . 2 2 3 . 10 . . Special 4 | . . . . . 2 2 . . . . . . . . . . . Kinetic 677 | . 57 1 27 . 38 185 79 . . 15 38 13 77 . 46 99 2 Thermal 521 | . 21 1 62 . 48 . 6 39 5 22 4 8 50 18 154 53 30 Explosive 39 | . . 8 13 . . . 1 . . . 2 2 3 . 10 . . Electromagnetic 9 | . . . . . . . . 2 3 . . . . . . . 4 Entropic 1 | . . . . . . . . . . . . . . . . 1 . Robot Hit Streak 21 | . 6 2 14 . 11 11 14 9 4 6 7 3 7 12 13 21 5 Robot Miss Streak 13 | . 4 2 6 . 5 13 5 3 2 6 8 5 7 2 8 6 5 Penetration Max 1 | . . . . . . 1 1 . . . . . . . . 1 . Secondary Targets . | . . . . . . . . . . . . . . . . . . Shots Hit Robots 703 | . 38 5 50 . 48 110 56 28 4 23 34 12 76 13 106 89 11 Core Hits 393 | . 22 7 22 . 27 72 43 10 3 16 23 11 46 2 43 40 6 Critical Kills 7 | . . . 1 . . . . . . . . . . 1 1 2 2 Critical Parts Destroyed 10 | . . . . . 1 . . . . . . . . . 1 5 3 Critical Strikes 45 | . . . 1 . 2 15 3 . . . . 2 6 1 3 7 5 Meltdown 3 | . . . 1 . . . . . . . . . . 1 1 . . Destroy 15 | . . . . . 1 1 . . . . . . . . 1 7 5 Blast 27 | . . . . . 1 14 3 . . . . 2 6 . 1 . . Melee Attacks 8 | . . . . . . 1 . . . . 7 . . . . . . Impact . | . . . . . . . . . . . . . . . . . . Slashing . | . . . . . . . . . . . . . . . . . . Piercing 1 | . . . . . . 1 . . . . . . . . . . . Sneak Attacks 7 | . . . . . . . . . . . 7 . . . . . . Combat Hostiles . | . . . . . . . . . . . . . . . . . . Follow-up Attacks . | . . . . . . . . . . . . . . . . . . Damage Inflicted 29471 | . 727 508 1572 . 1911 3923 1879 1029 122 838 841 803 3945 431 4956 4616 1370 Guns 6213 | . 444 . 44 . 227 191 444 281 . 292 36 66 524 202 1867 1461 134 Cannons 18968 | . 252 21 891 . 1063 3730 1435 748 122 546 736 323 2947 229 1970 2765 1190 Explosions 4204 | . . 487 637 . 612 . . . . . 69 414 436 . 1119 390 40 Melee 1 | . . . . . . 1 . . . . . . . . . . . Ramming 85 | . 31 . . . 9 1 . . . . . . 38 . . . 6 Kinetic 14186 | . 444 . 466 . 1074 3921 1782 . . 354 736 323 2352 . 967 1752 15 Thermal 11243 | . 252 21 609 . 828 . 97 993 65 484 36 66 1119 431 2870 2050 1322 Explosive 3142 | . . 487 497 . . . . . . . 69 414 436 . 1119 120 . Electromagnetic 347 | . . . . . . . . 36 57 . . . . . . 227 27 Impact . | . . . . . . . . . . . . . . . . . . Slashing . | . . . . . . . . . . . . . . . . . . Piercing 1 | . . . . . . 1 . . . . . . . . . . . Entropic 467 | . . . . . . . . . . . . . . . . 467 . Highest Corruption 23 | . . . . . 3 . . 2 . 9 9 . 5 1 13 23 2 Average Corruption 4 | . . . . . 2 . . 1 . 6 9 . 3 1 4 17 1 Corruption Purged 5 | . . . . . 3 . . 2 . . . . . . . . . Corruption Blocked . | . . . . . . . . . . . . . . . . . . Effects 89 | . . . . . 1 . . 1 . 12 2 . 12 1 41 15 4 Message Errors 23 | . . . . . . . . . . 3 . . 2 1 12 4 1 Matter Fused 26 | . . . . . 1 . . . . 2 1 . 6 . 10 4 2 Heat Flow Errors 6 | . . . . . . . . 1 . 1 . . 1 . 3 . . Energy Discharges 10 | . . . . . . . . . . 4 . . 1 . 5 . . Parts Rejected 3 | . . . . . . . . . . . . . . . 1 2 . Parts Fused 1 | . . . . . . . . . . . . . . . 1 . . Data Loss (minor) 9 | . . . . . . . . . . . . . 2 . 4 2 1 Data Loss (major) 3 | . . . . . . . . . . 1 1 . . . 1 . . Misfires 5 | . . . . . . . . . . 1 . . . . 4 . . Alerts 1 | . . . . . . . . . . . . . . . . 1 . Weapon Failures 2 | . . . . . . . . . . . . . . . . 2 . Overload Shots . | . . . . . . . . . . . . . . . . . . Overflow Damage 1153 | . . 15 7 . 17 52 . 17 . 3 . 27 236 . 166 532 81 Projectiles 1029 | . . . 7 . 17 52 . 17 . 3 . 10 236 . 79 527 81 Explosions 124 | . . 15 . . . . . . . . . 17 . . 87 5 . Melee . | . . . . . . . . . . . . . . . . . . Knockbacks 78 | . . . 3 . 2 35 . . . 7 3 4 13 . 9 2 . Impact 2 | . . . . . 1 . . . . . . . 1 . . . . Kinetic 69 | . . . 3 . 1 30 . . . 7 3 4 10 . 9 2 . Secondary 7 | . . . . . . 5 . . . . . . 2 . . . . Self-Inflicted Damage 341 | . 6 . 42 . . . . . . . . . 36 . 70 181 6 Shots 7 | . . . 2 . . . . . . . . . 1 . 1 3 . Rammed 9 | . 4 . . . 1 1 . . . . . . 3 . . . . Targets Rammed 10 | . 5 . . . 1 1 . . . . . . 3 . . . . Kicked . | . . . . . . . . . . . . . . . . . . Crushed 1 | . 1 . . . . . . . . . . . . . . . . Highest Temperature 552 | . 369 85 105 . 252 340 102 315 99 319 186 200 427 343 552 356 464 Average Temperature 102 | . 125 46 32 . 52 99 28 103 52 110 72 113 116 122 143 112 107 Received Heat Transfer 1650 | . 78 18 51 . 59 852 9 9 . . 8 . 86 75 99 261 45 Effects 12 | . 3 . . . . . . 1 . . . . . . 5 2 1 Shutdowns 5 | . 1 . . . . . . . . . . . . . 2 1 1 Energy Bleed 3 | . 1 . . . . . . . . . . . . . 1 1 . Interference 1 | . . . . . . . . 1 . . . . . . . . . Short Circuit 2 | . 1 . . . . . . . . . . . . . 1 . . Damage (minor) 1 | . . . . . . . . . . . . . . . 1 . . Siege Activations 2 | . . . . . . . . . . . . . . . . 2 . Total Turns 59 | . . . . . . . . . . . . . . . . 59 . Longest Duration 51 | . . . . . . . . . . . . . . . . 51 . Martial Activations . | . . . . . . . . . . . . . . . . . . Shielding Activations . | . . . . . . . . . . . . . . . . . . Robots Disrupted . | . . . . . . . . . . . . . . . . . . Combat Hostiles . | . . . . . . . . . . . . . . . . . . Robots Corrupted . | . . . . . . . . . . . . . . . . . . Combat Hostiles . | . . . . . . . . . . . . . . . . . . Parts Fried . | . . . . . . . . . . . . . . . . . . Impact Corruptions . | . . . . . . . . . . . . . . . . . . Robots Melted 3 | . . . 1 . . . . . . . . . . 1 1 . . Combat Hostiles 3 | . . . 1 . . . . . . . . . . 1 1 . . Parts Melted 21 | . 1 . 3 . . . . 6 . . . . . 2 8 1 . Heat Transferred 11280 | . 444 37 962 . 1052 . 150 1383 100 546 74 74 1559 481 2923 1186 309 Parts Sabotaged . | . . . . . . . . . . . . . . . . . . Parts Stolen . | . . . . . . . . . . . . . . . . . . Parts Stripped . | . . . . . . . . . . . . . . . . . . Power Chain Reactions 2 | . . . . . . . . . . . . . . . . 2 . Alert | -11 -10 -10 -10 -9 -6 -6 -6 -5 -5 -5 -5 -4 -4 -3 -3 -2 -1 ------- Run | Yrd Mat Min Sub Scr Fac Ext Cet Fac Upp Upp War Pro Fac Res Qua Res Acc Maximum Alert Level 2 | . 1 . . . 1 2 . . . . . . 2 . 2 1 1 Low Security (%) 67 | 100 97 100 . . 94 28 100 100 . . . . 20 100 28 . 94 Level 1 24 | . 2 . . . 5 39 . . . . . . 72 . 39 99 5 Level 2 7 | . . . . . . 31 . . . . . . 6 . 31 . . Level 3 . | . . . . . . . . . . . . . . . . . . Level 4 . | . . . . . . . . . . . . . . . . . . Level 5 . | . . . . . . . . . . . . . . . . . . High Security . | . . . . . . . . . . . . . . . . . . Max Security . | . . . . . . . . . . . . . . . . . . Peak Influence 649 | . 210 149 . . 259 462 191 114 . . . . 412 190 649 372 227 Initial 355 | . . . . . . 119 191 23 . . . . 53 190 . 355 181 Average 151 | . 70 34 . . 74 300 83 22 . . . . 271 75 275 282 120 Influence Increases 6784 | . 456 162 125 . 680 737 201 239 22 106 615 276 893 84 1173 640 375 Destroy 0b10 Robot/C 3540 | . 240 100 80 . 400 440 160 120 20 80 440 200 400 40 440 320 60 Destroy 0b10 Robot/NC 220 | . 35 5 . . 25 50 10 20 . . . . 20 . 5 40 10 Destroy Leader 566 | . 58 20 . . 60 72 . 44 . 20 . 30 90 10 70 72 20 Allied During Kill 400 | . . . . . 52 71 10 14 2 6 145 46 23 . . 31 . Successful Hack 232 | . 47 . . . 57 22 . 17 . . . . . . 38 . 51 Disable Machine 540 | . 30 . . . 30 30 . . . . . . 45 15 300 45 45 Anti-Garrison Action 200 | . . . . . . . . . . . . . 200 . . . . Destroy Structure 741 | . 1 37 . . 41 37 21 24 . . . . 100 4 230 117 129 Partial Spotted 15 | . . . . . . . . . . . . . . 15 . . . Lose Combat Pursuer 330 | . 45 . 45 . 15 15 . . . . 30 . 15 . 90 15 60 Influence Decreases 6779 | . 456 102 185 . 436 639 501 186 117 106 176 629 615 448 540 970 673 Entered New Map 1409 | . . . 32 . . 125 151 19 36 . . 439 33 174 . 278 122 Time Decay 4312 | . 456 102 153 . 426 374 265 167 81 86 116 176 482 254 480 342 352 Lost Part 788 | . . . . . 10 80 65 . . . 20 14 50 20 60 270 199 Lost Ally 270 | . . . . . . 60 20 . . 20 40 . 50 . . 80 . Squads Dispatched 32 | . 1 . . . 4 2 . 3 . . . . 4 3 9 4 2 Investigation 4 | . . . . . . 1 . . . . . . 1 2 . . . Extermination 14 | . . . . . 3 . . 1 . . . . 2 . 4 2 2 Reinforcement 10 | . 1 . . . 1 1 . 2 . . . . 1 1 1 2 . Assault 1 | . . . . . . . . . . . . . . . 1 . . Garrison 3 | . . . . . . . . . . . . . . . 3 . . Intercept . | . . . . . . . . . . . . . . . . . . Searches Triggered . | . . . . . . . . . . . . . . . . . . Construction Impeded 5 | . . . . . . 1 . 1 . . . . 1 . 1 1 . Haulers Reinforced 1 | . . . . . . . . 1 . . . . . . . . . Active Scanning Responses . | . . . . . . . . . . . . . . . . . . Cargo Convoy Interrupts . | . . . . . . . . . . . . . . . . . . Stealth | -11 -10 -10 -10 -9 -6 -6 -6 -5 -5 -5 -5 -4 -4 -3 -3 -2 -1 --------- Run | Yrd Mat Min Sub Scr Fac Ext Cet Fac Upp Upp War Pro Fac Res Qua Res Acc Distress Signals 22 | . 2 . . . 2 2 1 . . . 3 . 1 6 3 1 1 Communications Jammed . | . . . . . . . . . . . . . . . . . . Distress Signals . | . . . . . . . . . . . . . . . . . . Times Spotted 302 | . 22 5 17 . 30 28 9 9 1 4 49 6 29 11 40 26 16 Peak Tracking Total 11 | . 5 3 3 . 7 8 5 3 1 2 11 5 5 4 7 7 6 Tactical Retreats 17 | . 1 . 2 . 1 1 . . . . 2 . 1 . 4 1 4 Traps | -11 -10 -10 -10 -9 -6 -6 -6 -5 -5 -5 -5 -4 -4 -3 -3 -2 -1 ------- Run | Yrd Mat Min Sub Scr Fac Ext Cet Fac Upp Upp War Pro Fac Res Qua Res Acc Traps Triggered 14 | . 2 . 5 . . 1 . 1 . . . . . 2 3 . . Indirectly . | . . . . . . . . . . . . . . . . . . Trap Hack Attempts 7 | . . . . . . 7 . . . . . . . . . . . Triggered . | . . . . . . . . . . . . . . . . . . Disarmed . | . . . . . . . . . . . . . . . . . . Reprogrammed 2 | . . . . . . 2 . . . . . . . . . . . Reused . | . . . . . . . . . . . . . . . . . . Traps Extracted . | . . . . . . . . . . . . . . . . . . Installed . | . . . . . . . . . . . . . . . . . . Triggered . | . . . . . . . . . . . . . . . . . . Machines | -11 -10 -10 -10 -9 -6 -6 -6 -5 -5 -5 -5 -4 -4 -3 -3 -2 -1 ---------- Run | Yrd Mat Min Sub Scr Fac Ext Cet Fac Upp Upp War Pro Fac Res Qua Res Acc Machines Disabled 38 | . 2 . 1 . 2 3 . . . . . . 3 1 20 3 3 Max in Single Turn 2 | . 1 . 1 . 1 1 . . . . . . 1 1 2 1 1 Garrison Access 2 | . . . . . 1 . . . . . . . 1 . . . . Energy Cycler 2 | . . . . . . 1 . . . . . . . . . . 1 Machines Repaired . | . . . . . . . . . . . . . . . . . . Machines Dismantled . | . . . . . . . . . . . . . . . . . . Machines Sabotaged . | . . . . . . . . . . . . . . . . . . Overloaded Fab Kills . | . . . . . . . . . . . . . . . . . . Hacking | -11 -10 -10 -10 -9 -6 -6 -6 -5 -5 -5 -5 -4 -4 -3 -3 -2 -1 --------- Run | Yrd Mat Min Sub Scr Fac Ext Cet Fac Upp Upp War Pro Fac Res Qua Res Acc Machines Accessed 53 | . 10 . 1 3 7 4 1 2 . 1 5 . 5 3 8 2 1 Terminals 28 | . 7 . . . 3 3 1 . . . . . 3 1 8 1 1 Fabricators 3 | . . . . . . . . 2 . . . . . 1 . . . Repair Stations 1 | . 1 . . . . . . . . . . . . . . . . Recycling Units 7 | . 2 . . . 2 1 . . . . . . 1 . . 1 . Scanalyzers 2 | . . . . . 1 . . . . . . . . 1 . . . Garrison Access 2 | . . . . . 1 . . . . . . . 1 . . . . Total Hacks 148 | . 39 . 1 27 17 11 2 6 . 1 11 . 9 5 13 3 3 Successful 94 | . 24 . 1 27 10 6 . 4 . 1 11 . 1 2 5 . 2 Failed 53 | . 14 . . . 7 5 2 2 . . . . 8 3 8 3 1 Catastrophic 16 | . 2 . . . 2 . . 1 . . . . 3 1 4 3 . Database Lockouts 1 | . 1 . . . . . . . . . . . . . . . . Manual 62 | . 28 . . . 11 2 . 3 . . . . 6 2 6 3 1 Terminals 70 | . 28 . . . 8 9 2 . . . . . 4 2 13 1 3 Fabricators 7 | . . . . . . . . 6 . . . . . 1 . . . Repair Stations 5 | . 5 . . . . . . . . . . . . . . . . Recycling Units 18 | . 6 . . . 5 2 . . . . . . 3 . . 2 . Scanalyzers 4 | . . . . . 2 . . . . . . . . 2 . . . Garrison Access 4 | . . . . . 2 . . . . . . . 2 . . . . Terminal Hacks 67 | . 13 . 1 27 3 5 . . . 1 11 . . . 5 . 1 Record 32 | . . . . 21 . . . . . . 10 . . . 1 . . Robot Analysis 10 | . 4 . . 6 . . . . . . . . . . . . . Prototype ID Bank 6 | . 6 . . . . . . . . . . . . . . . . Open Door 6 | . . . . . 1 2 . . . 1 1 . . . 1 . . Level Access Points 1 | . . . . . . . . . . . . . . . . . 1 Terminal Index 2 | . . . . . 1 . . . . . . . . . 1 . . Recycling Unit Index 1 | . . . . . 1 . . . . . . . . . . . . Alert Level 2 | . . . . . . 1 . . . . . . . . 1 . . Locate Traps 5 | . 3 . . . . 1 . . . . . . . . 1 . . Zone Layout 1 | . . . . . . 1 . . . . . . . . . . . Proto ID Catalog 1 | . . . 1 . . . . . . . . . . . . . . Fabricator Hacks 3 | . . . . . . . . 3 . . . . . . . . . Network Status 2 | . . . . . . . . 2 . . . . . . . . . Build 1 | . . . . . . . . 1 . . . . . . . . . Repair Station Hacks 4 | . 4 . . . . . . . . . . . . . . . . Scan Component 2 | . 2 . . . . . . . . . . . . . . . . Repair 2 | . 2 . . . . . . . . . . . . . . . . Recycling Unit Hacks 2 | . 2 . . . . . . . . . . . . . . . . Report Inventory 1 | . 1 . . . . . . . . . . . . . . . . Retrieve Components 1 | . 1 . . . . . . . . . . . . . . . . Scanalyzer 4 | . . . . . 2 . . . . . . . . 2 . . . Retrieve Study 4 | . . . . . 2 . . . . . . . . 2 . . . Garrison Access Hacks 1 | . . . . . 1 . . . . . . . . . . . . Seal Access 1 | . . . . . 1 . . . . . . . . . . . . Unauthorized Hacks 13 | . 5 . . . 4 1 . 1 . . . . 1 . . . 1 Terminals 5 | . 1 . . . 3 . . . . . . . . . . . 1 Track 1 | . . . . . 1 . . . . . . . . . . . . Assimilate 1 | . . . . . 1 . . . . . . . . . . . . Botnet 3 | . 1 . . . 1 . . . . . . . . . . . 1 Fabricators 1 | . . . . . . . . 1 . . . . . . . . . Liberate 1 | . . . . . . . . 1 . . . . . . . . . Repair Stations . | . . . . . . . . . . . . . . . . . . Recycling Units 6 | . 4 . . . 1 1 . . . . . . . . . . . Reject 4 | . 2 . . . 1 1 . . . . . . . . . . . Mask 2 | . 2 . . . . . . . . . . . . . . . . Scanalyzers . | . . . . . . . . . . . . . . . . . . Garrison Access 1 | . . . . . . . . . . . . . 1 . . . . Jam 1 | . . . . . . . . . . . . . 1 . . . . Data Cores Recovered 2 | . . . . . 1 1 . . . . . . . . . . . Used . | . . . . . . . . . . . . . . . . . . Hacking Detections 38 | . 9 . . . 5 3 1 2 . . . . 5 3 7 2 1 Full Trace Events 1 | . . . . . . 1 . . . . . . . . . . . Feedback Events . | . . . . . . . . . . . . . . . . . . Feedback Blocked . | . . . . . . . . . . . . . . . . . . Robot Schematics Acquired 1 | . . . . . . . . . . . . . . . 1 . . Robots Built . | . . . . . . . . . . . . . . . . . . Authchips . | . . . . . . . . . . . . . . . . . . Time . | . . . . . . . . . . . . . . . . . . Total Robot Build Rating . | . . . . . . . . . . . . . . . . . . Part Schematics Acquired 2 | . . . . . . . . . . . . . . . 2 . . Parts Built 2 | . . . . . . . . 2 . . . . . . . . . Authchips . | . . . . . . . . . . . . . . . . . . Time 139 | . . . . . . . . 139 . . . . . . . . . Total Part Build Rating 18 | . . . . . . . . 18 . . . . . . . . . Part Studies Acquired 4 | . . . . . 2 . . . . . . . . 2 . . . Parts Repaired 2 | . 2 . . . . . . . . . . . . . . . . Time 52 | . 52 . . . . . . . . . . . . . . . . Parts Recycled . | . . . . . . . . . . . . . . . . . . Recycled Matter . | . . . . . . . . . . . . . . . . . . Retrieved Matter . | . . . . . . . . . . . . . . . . . . Retrieved Components 10 | . 10 . . . . . . . . . . . . . . . . Parts Scanalyzed . | . . . . . . . . . . . . . . . . . . Part Schematics Acquired . | . . . . . . . . . . . . . . . . . . Parts Damaged . | . . . . . . . . . . . . . . . . . . Bothacking | -11 -10 -10 -10 -9 -6 -6 -6 -5 -5 -5 -5 -4 -4 -3 -3 -2 -1 ------------ Run | Yrd Mat Min Sub Scr Fac Ext Cet Fac Upp Upp War Pro Fac Res Qua Res Acc Used RIF Installer . | . . . . . . . . . . . . . . . . . . Robots Hacked . | . . . . . . . . . . . . . . . . . . Non-combat . | . . . . . . . . . . . . . . . . . . Combat . | . . . . . . . . . . . . . . . . . . Robot Hacks Applied . | . . . . . . . . . . . . . . . . . . Relay Couplers Released . | . . . . . . . . . . . . . . . . . . Fabnet Peak Effective % . | . . . . . . . . . . . . . . . . . . Robots Rewired 5 | . . . . . . . . . . . 5 . . . . . . Allies Hacked 1 | . . . . . . . . . . . 1 . . . . . . Hacks Repelled . | . . . . . . . . . . . . . . . . . . Allies | -11 -10 -10 -10 -9 -6 -6 -6 -5 -5 -5 -5 -4 -4 -3 -3 -2 -1 -------- Run | Yrd Mat Min Sub Scr Fac Ext Cet Fac Upp Upp War Pro Fac Res Qua Res Acc Total Allies 26 | . . . . 1 . 4 1 . . . 7 . . . . 6 7 Largest Group 7 | . . . . 1 1 4 1 1 1 1 6 3 3 . . 6 7 Highest-Rated Group 357 | . . . . 81 81 188 81 78 47 47 357 196 196 . . 83 103 Highest-Rated Ally 93 | . . . . 81 81 85 81 78 47 47 93 75 75 . . 15 15 Initial UFD Resources 39 | . . . . . 23 23 23 26 26 26 26 30 30 32 32 36 39 Total Orders 12 | . . . . . 5 . . . 1 3 . 2 1 . . . . STAY 5 | . . . . . 2 . . . 1 1 . 1 . . . . . ROAM 1 | . . . . . . . . . . 1 . . . . . . . FOLLOW 4 | . . . . . 2 . . . . 1 . 1 . . . . . EXPLORE 2 | . . . . . 1 . . . . . . . 1 . . . . Ally Attacks 219 | . . . . . 22 33 16 16 . . 49 8 22 . . 43 10 Total Damage 10582 | . . . . . 597 982 592 469 . . 6609 149 276 . . 640 268 Kills 55 | . . . . . 9 12 2 3 . . 18 3 2 . . 6 . Allies Corrupted 1 | . . . . . . . . . . 1 . . . . . . . Allies Melted 2 | . . . . . . 1 . . . . . 1 . . . . . Intel | -11 -10 -10 -10 -9 -6 -6 -6 -5 -5 -5 -5 -4 -4 -3 -3 -2 -1 ------- Run | Yrd Mat Min Sub Scr Fac Ext Cet Fac Upp Upp War Pro Fac Res Qua Res Acc Active Infowar (turns) 11659 | . . . . . 1613 714 654 875 493 1060 1298 1274 753 421 1498 111 895 Optics 7276 | . . . . . . . 654 875 493 1060 1298 1274 725 . . 2 895 Sensors 9657 | . . . . . 1355 675 . 693 418 1018 1042 1265 566 421 1498 . 706 Terrain 3490 | . . . . . 184 . . 504 410 559 917 162 . . . 111 643 Traps 934 | . . . . . 624 310 . . . . . . . . . . . Machine Analysis 1273 | . . . . . 1273 . . . . . . . . . . . . Robot Analysis Total 10 | . 4 . . 6 . . . . . . . . . . . . . Derelict Logs Recovered 10 | . . 2 . 5 . . . . 1 1 . 1 . . . . . Drone Launches 5 | . . . . . 2 . . . . . . . 3 . . . . Drone Recoveries . | . . . . . . . . . . . . . . . . . . Exploration | -11 -10 -10 -10 -9 -6 -6 -6 -5 -5 -5 -5 -4 -4 -3 -3 -2 -1 ------------- Run | Yrd Mat Min Sub Scr Fac Ext Cet Fac Upp Upp War Pro Fac Res Qua Res Acc Turns Passed 24780 | 58 1710 801 2959 5783 1619 873 654 875 493 1060 1298 1274 1258 632 1771 763 899 Spaces Moved 11577 | 33 758 423 1180 3333 629 414 286 393 259 440 631 400 429 339 736 306 588 Core 343 | 4 1 . . 142 . . . . . . . . . . . 8 188 Treads 1958 | 29 426 . 123 . 16 . 25 17 . 122 134 400 288 . 168 210 . Legs . | . . . . . . . . . . . . . . . . . . Wheels 9274 | . 331 423 1057 3191 613 414 261 376 259 318 497 . 141 339 568 88 398 Hover . | . . . . . . . . . . . . . . . . . . Flight 2 | . . . . . . . . . . . . . . . . . 2 Fastest Speed 50 | 50 160 175 190 50 125 140 115 160 175 175 160 246 190 120 140 50 50 Average Speed 179 | 146 178 180 228 169 187 153 166 177 175 193 178 246 227 153 181 144 104 Slowest Speed 560 | 160 320 190 560 190 240 175 240 240 175 240 246 246 246 190 241 305 290 Overloaded Moves . | . . . . . . . . . . . . . . . . . . Propulsion Burnouts . | . . . . . . . . . . . . . . . . . . Robots Hopped . | . . . . . . . . . . . . . . . . . . Potential Cave-ins 5 | . . . . . . . . . . . . . . . . . 5 Cave-ins Triggered . | . . . . . . . . . . . . . . . . . . Teleports 3 | . . . . . . . . . . . . . . . 3 . . Exploration Rate (%) 50 | 4 97 90 72 91 16 66 71 10 58 71 69 50 23 10 85 9 18 Regions Visited 17 Branch Regions 10 Pre-discovered Areas 8 | . . 1 . 5 . . . . . 1 1 . . . . . . Known Exits Taken 12 | . . . . . 1 1 1 1 1 1 1 1 1 1 1 1 . Unknown Exits Taken 5 | 1 1 1 1 1 . . . . . . . . . . . . . Scrap Searched 23 | . . 1 11 6 . . . . 1 1 . 3 . . . . . Spaces Dug 26 | . . . . . 3 . . . 2 2 . . 3 . 1 1 14 Terrain Destroyed 677 | . . 51 132 . 73 35 30 5 3 9 23 24 46 2 144 57 43 Melee . | . . . . . . . . . . . . . . . . . . Projectile 245 | . . . 11 . 17 35 11 5 3 9 5 6 26 2 39 57 19 AOE 432 | . . 51 121 . 56 . 19 . . . 18 18 20 . 105 . 24 Terrain Rammed 1 | . . . . . . . . . . . . . . . . . 1 Walls Destroyed . | . . . . . . . . . . . . . . . . . . Machines Disabled . | . . . . . . . . . . . . . . . . . . Actions | -11 -10 -10 -10 -9 -6 -6 -6 -5 -5 -5 -5 -4 -4 -3 -3 -2 -1 --------- Run | Yrd Mat Min Sub Scr Fac Ext Cet Fac Upp Upp War Pro Fac Res Qua Res Acc Total 14617 | 40 1024 449 1339 3494 996 547 400 536 290 624 767 669 604 440 1030 529 839 Wait 1727 | . 178 12 43 65 242 34 27 67 19 152 78 248 88 64 132 97 181 Move 11560 | 32 757 422 1179 3332 628 413 285 392 258 439 630 399 428 338 735 305 588 Hop . | . . . . . . . . . . . . . . . . . . Pick Up 229 | 2 22 4 14 46 25 9 31 15 1 5 9 3 8 6 15 9 5 Fast Attach 80 | 6 5 . 1 1 3 3 4 2 . . 3 . 2 8 9 25 8 Attach 103 | . . . 5 4 16 5 7 2 . 1 1 2 9 3 15 22 11 Detach 38 | . 1 . 1 1 1 1 1 1 . . . . 3 2 3 16 7 Swap 141 | . 13 4 14 . 19 12 5 10 5 9 6 6 10 3 23 1 1 Drop 179 | . 4 1 16 45 19 5 8 14 2 6 14 1 4 10 20 4 6 Fire 506 | . 39 6 66 . 42 48 32 25 5 12 19 10 49 6 66 50 31 Melee 8 | . . . . . . 1 . . . . 7 . . . . . . Ram 2 | . 1 . . . . . . . . . . . . . . . 1 Kick . | . . . . . . . . . . . . . . . . . . Crush 9 | . 4 . . . 1 1 . . . . . . 3 . . . . Escape Stasis 28 | . . . . . . 8 . 8 . . . . . . 12 . . Rewire . | . . . . . . . . . . . . . . . . . . Trap 7 | . . . . . . 7 . . . . . . . . . . . Miscellaneous . | . . . . . . . . . . . . . . . . . . Route ------- -11/Scrapyard -10/Materials (discovered 5 exits: [*Mat x3] / [*Min x2]) -10/Mines (discovered 3 exits: [*Mat x2] / *Sub) -10/Subcaves (discovered 4 exits: [*Mat x2] / [*Rec] / *Scr) -9/Scraptown (discovered 2 exits: *Fac x2) -6/Factory (discovered 4 exits: Fac / Low x2 / *Ext) -6/Extension (discovered 3 exits: *Fac x2 / *Cet) -6/Cetus (discovered 2 exits: *Fac / [*Arc]) -5/Factory -5/Upper Caves -5/Upper Caves (discovered 2 exits: *Fac / *War) -5/Warlord -4/Proximity Caves -4/Factory -3/Research (discovered 5 exits: Res x2 / Arm / *Qua x2) -3/Quarantine -2/Research -1/Access (discovered 1 exit: Sur) History --------- Turn | Location | Event 3 | -11/Scrapyard | Discovered new exit (range 16) 59 | -11/Scrapyard | Entered Materials 103 | -10/Materials | Discovered new exit (range 14) 306 | -10/Materials | Build established: Mutant 410 | -10/Materials | Discovered new exit (range 11) 619 | -10/Materials | Discovered new exit (range 10) 783 | -10/Materials | Discovered new exit (range 8) 997 | -10/Materials | Discovered new exit (range 10) 1001 | -10/Materials | Central database locked down 1661 | -10/Materials | Repaired Lgt. Treads 1688 | -10/Materials | Repaired Lgt. Treads 1769 | -10/Materials | Entered Mines 1776 | -10/Mines | Received a Rocket Launcher from a helpful Derelict 1846 | -10/Mines | Learned location of Mines (-8) 1858 | -10/Mines | Learned 2 Materials zone layouts 1988 | -10/Mines | Discovered new exit (range 14) 2264 | -10/Mines | Discovered new exit (range 7) 2559 | -10/Mines | Discovered new exit (range 6) 2570 | -10/Mines | Entered Subcaves 2571 | -10/Subcaves | Approached by a straggling Scientist 3063 | -10/Subcaves | Discovered new exit (range 13) 3088 | -10/Subcaves | Discovered new exit (range 15) 3109 | -10/Subcaves | Shifting Twisted Machinery released Sub. Shrapnel Launcher 3137 | -10/Subcaves | Shifting Twisted Machinery released Sub. Power Source 3162 | -10/Subcaves | Discovered new exit (range 9) 3281 | -10/Subcaves | Shifting Twisted Machinery released Battle Rifle 3376 | -10/Subcaves | A swath of the cavern ceiling suddenly collapsed 3401 | -10/Subcaves | Shifting Twisted Machinery released Slug Cannon 3451 | -10/Subcaves | Shifting Twisted Machinery released Mak. Light Armor Plating 3459 | -10/Subcaves | Shifting Twisted Machinery released Sub. Beam Cannon 3815 | -10/Subcaves | A swath of the cavern ceiling suddenly collapsed 4550 | -10/Subcaves | Disturbed a concealed Subdweller 4583 | -10/Subcaves | Disturbed a concealed Subdweller 4897 | -10/Subcaves | Visited 4L-MR0's lab 4917 | -10/Subcaves | Found Rainbow Chip 5529 | -10/Subcaves | Entered Scraptown 5605 | -9/Scraptown | Learned location of Extension (-6) 5661 | -9/Scraptown | Visited TADAMA 5676 | -9/Scraptown | Visited Bundlers 5691 | -9/Scraptown | Visited Comm Corps 5742 | -9/Scraptown | Scanned Subdweller tech in exchange for log data 5749 | -9/Scraptown | Learned Research emergency access door positions 5750 | -9/Scraptown | Learned Research terminal intel 5752 | -9/Scraptown | Learned location of 1 exit from Factory 5754 | -9/Scraptown | Learned 8 Research zone layouts 5756 | -9/Scraptown | Learned location of 1 exit from Research 5775 | -9/Scraptown | Discovered new exit (range 11) 6286 | -9/Scraptown | Visited Science Testing Area 6319 | -9/Scraptown | Visited The Evicted 6452 | -9/Scraptown | Visited Assassins FH 6478 | -9/Scraptown | Visited Awakened 7125 | -9/Scraptown | Visited UFD Registry 7125 | -9/Scraptown | Registered with UFD as "Pipesys" 7192 | -9/Scraptown | Visited A0-MCA Data Center 7218 | -9/Scraptown | Visited Curators Association 7304 | -9/Scraptown | Delivered Scrap Shield to a Scientist 7384 | -9/Scraptown | Visited Botcube Research 7412 | -9/Scraptown | Visited Analyses Database 7456 | -9/Scraptown | Visited Junk Repository 7498 | -9/Scraptown | Visited Cartography Club 7555 | -9/Scraptown | Visited Infowarlord's Domain 7589 | -9/Scraptown | Visited Junk Repository 7638 | -9/Scraptown | Visited Abandonware Association 7657 | -9/Scraptown | Learned abandonware demo "REBOOT5.EXE" 7823 | -9/Scraptown | Learned location of Lower Caves (-6) 7823 | -9/Scraptown | Learned location of Warlord (-5) 7823 | -9/Scraptown | Learned location of Cetus (-6) 7823 | -9/Scraptown | Learned location of Testing (-2) 7823 | -9/Scraptown | Learned 24 Factory zone layouts 7823 | -9/Scraptown | Learned 16 Research zone layouts 7823 | -9/Scraptown | Learned 4 Mines zone layouts 7823 | -9/Scraptown | Learned 8 Upper Caves zone layouts 7823 | -9/Scraptown | Learned 4 Recycling zone layouts 7823 | -9/Scraptown | Learned 16 Proximity Caves zone layouts 7823 | -9/Scraptown | Learned 4 Hub_04(d) zone layouts 7823 | -9/Scraptown | Learned location of 1 exit from Research 7823 | -9/Scraptown | Learned location of 2 exits from Research 7823 | -9/Scraptown | Learned location of 2 exits from Proximity Caves 8028 | -9/Scraptown | Found Lrg. Botcube 9583 | -9/Scraptown | Lrg. Botcube activated 9619 | -9/Scraptown | Lrg. Botcube completed mutation into treaded form, armed with 3 guns, 1 cannon 9853 | -9/Scraptown | Found Exp. Signal Interpreter 10639 | -9/Scraptown | Given a C+ rating by A0-MCA 10641 | -9/Scraptown | Found A0-MCA's Component Scanner 10894 | -9/Scraptown | Found Surveybot 17 Chip 11071 | -9/Scraptown | Discovered new exit (range 5) 11189 | -9/Scraptown | Met Optimus 11189 | -9/Scraptown | Accepted into 0bPrime 11312 | -9/Scraptown | Entered Factory 11312 | -6/Factory | Accompanied by 1 ally 11312 | -6/Factory | Evolved 8 slots: Propulsion x2, Utility x5, Weapon x1 11313 | -6/Factory | Identified exit to Lower Caves 11314 | -6/Factory | Identified exit to Factory 11315 | -6/Factory | Identified exit to Extension 11895 | -6/Factory | Build established: Derelict-Skirmisher 12638 | -6/Factory | Attached CPS modules to *Tianhuo 12640 | -6/Factory | Attached CPS modules to *Tianhuo 12670 | -6/Factory | Attached Rainbow Chip, gained temporary slots: Power, Propulsion, Utility, Weapon 12931 | -6/Factory | Entered Extension 12931 | -6/Extension | Accompanied by 1 ally 12971 | -6/Extension | Rescued a captive Derelict 12999 | -6/Extension | Rescued a captive Derelict 12999 | -6/Extension | Rescued a captive Derelict 13011 | -6/Extension | Build established: Skirmisher 13078 | -6/Extension | Energy Cycler disabled 13079 | -6/Extension | Rescued a captive Derelict 13079 | -6/Extension | Rescued a captive Derelict 13080 | -6/Extension | Rescued a captive Derelict 13081 | -6/Extension | Rescued a captive Derelict 13081 | -6/Extension | Rescued a captive Derelict 13082 | -6/Extension | Rescued a captive Derelict 13082 | -6/Extension | Rescued a captive Derelict 13086 | -6/Extension | Rescued a captive Derelict 13188 | -6/Extension | Spotted B-75 Beast 13192 | -6/Extension | Extracted ID and sensor layout for unrecognized location from A7's data core 13201 | -6/Extension | Lost 3 allies 13212 | -6/Extension | Spotted B-75 Beast 13257 | -6/Extension | Allies destroyed B-75 Beast 13267 | -6/Extension | Lost 5 parts (2n3u) 13288 | -6/Extension | Lrg. Botcube activated 13296 | -6/Extension | Destroyed B-75 Beast 13318 | -6/Extension | Lrg. Botcube completed mutation into legged form, armed with 3 guns 13366 | -6/Extension | Discovered exit to Factory (range 14) 13722 | -6/Extension | Discovered exit to Factory (range 10) 13725 | -6/Extension | Discovered new exit (range 6) 13744 | -6/Extension | Attached CPS modules to Large Mutated Botcube 13747 | -6/Extension | Attached CPS modules to Large Mutated Botcube 13764 | -6/Extension | Identified exit to Cetus 13804 | -6/Extension | Entered Cetus 13804 | -6/Cetus | Accompanied by 1 ally 13827 | -6/Cetus | Spotted Cetus Guard 13828 | -6/Cetus | Spotted Cetus Guard 13832 | -6/Cetus | Spotted Cetus Guard 13839 | -6/Cetus | Spotted Cetus Guard 13848 | -6/Cetus | Destroyed Cetus Guard 13862 | -6/Cetus | Destroyed Cetus Guard 13876 | -6/Cetus | Destroyed Cetus Guard 13885 | -6/Cetus | Destroyed Cetus Guard 13898 | -6/Cetus | Lost 4 parts (1n3u) 14106 | -6/Cetus | Build established: Gunner 14147 | -6/Cetus | Lrg. Botcube activated 14171 | -6/Cetus | Lrg. Botcube completed mutation into legged form, armed with 2 guns, 1 cannon 14286 | -6/Cetus | Discovered new exit (range 21) 14327 | -6/Cetus | Spotted Cetus Guard 14327 | -6/Cetus | Spotted Cetus Guard 14330 | -6/Cetus | Spotted Cetus Guard 14330 | -6/Cetus | Spotted Cetus Guard 14357 | -6/Cetus | Destroyed Cetus Guard 14364 | -6/Cetus | Allies destroyed Cetus Guard 14367 | -6/Cetus | Allies destroyed Cetus Guard 14368 | -6/Cetus | Destroyed Cetus Guard 14375 | -6/Cetus | Discovered exit to Factory (range 21) 14394 | -6/Cetus | Lost 7 parts (3n1u3w) 14411 | -6/Cetus | Met Revision 17 14458 | -6/Cetus | Entered Factory 14458 | -5/Factory | Accompanied by 1 ally 14458 | -5/Factory | Evolved 2 slots: Power x1, Weapon x1 14690 | -5/Factory | Build established: Scavenger-Tank 14921 | -5/Factory | Fabricated Enh. Nova Cannon (x2) 15031 | -5/Factory | Build established: Scavenger-Skirmisher 15193 | -5/Factory | Discovered new exit (range 15) 15267 | -5/Factory | Identified exit to Upper Caves 15275 | -5/Factory | Spotted B-75 Beast 15333 | -5/Factory | Entered Upper Caves 15333 | -5/Upper Caves | Accompanied by 1 ally 15335 | -5/Upper Caves | UFD Scientist delivered a prototype 15338 | -5/Upper Caves | Found Prototype Protection 15643 | -5/Upper Caves | Entered a destroyed Warlord outpost 15693 | -5/Upper Caves | Discovered new exit (range 9) 15737 | -5/Upper Caves | Identified exit to Upper Caves 15754 | -5/Upper Caves | Attracted the attention of an 0b10 checkpoint 15791 | -5/Upper Caves | Learned 4 Factory zone layouts 15826 | -5/Upper Caves | Entered another Upper Caves area 15826 | -5/Upper Caves | Accompanied by 1 ally 15835 | -5/Upper Caves | Discovered new exit (range 13) 16590 | -5/Upper Caves | Build established: Scavenger-Tank 16783 | -5/Upper Caves | Found Lrg. Botcube 16786 | -5/Upper Caves | Discovered new exit (range 20) 16884 | -5/Upper Caves | Identified exit to Warlord 16886 | -5/Upper Caves | Entered Warlord 16915 | -5/Warlord | Discovered new exit (range 20) 16946 | -5/Warlord | System corruption cleaned by Quarantine Array 17068 | -5/Warlord | Build established: Scavenger-Skirmisher 17178 | -5/Warlord | Visited the Vortex Lab 17190 | -5/Warlord | Warlord's base attacked by MAIN.C 17194 | -5/Warlord | Met EX-DEC 17236 | -5/Warlord | Found Prototype Energy Cannon 17387 | -5/Warlord | Build established: Scavenger-Assassin 17540 | -5/Warlord | Warlord forces counterattacked 17560 | -5/Warlord | Lrg. Botcube activated 17576 | -5/Warlord | Lrg. Botcube completed mutation into treaded form, armed with 2 guns, 1 launcher 17694 | -5/Warlord | Lost 5 allies 17717 | -5/Warlord | Learned location of Command (-1) 17719 | -5/Warlord | Learned 4 Research zone layouts 17719 | -5/Warlord | Learned 4 Testing zone layouts 17721 | -5/Warlord | Learned Armory repair station intel 17721 | -5/Warlord | Learned Research terminal intel 17793 | -5/Warlord | Spotted Striker 17795 | -5/Warlord | P-80 Master assimilated allied Slayer 6a 17802 | -5/Warlord | Allies destroyed Striker 17807 | -5/Warlord | Spotted Executioner 17816 | -5/Warlord | Allies destroyed Executioner 17839 | -5/Warlord | Spotted Striker 17844 | -5/Warlord | Lost 3 allies 17844 | -5/Warlord | Found Prototype Ballistic Cannon 17856 | -5/Warlord | Destroyed Striker 17858 | -5/Warlord | Spotted Executioner 17865 | -5/Warlord | Warlord base infiltrated, sounded retreat 17875 | -5/Warlord | Spotted Executioner 17881 | -5/Warlord | Found Prototype Ballistic Cannon 17927 | -5/Warlord | Lrg. Botcube activated 17929 | -5/Warlord | Identified Enh. Scrap Shield 17929 | -5/Warlord | Identified BFG-9k Vortex Edition 17929 | -5/Warlord | Identified Hvy. Autocannon (x2) 17932 | -5/Warlord | Spotted Executioner 17932 | -5/Warlord | Spotted B-86 Titan 17938 | -5/Warlord | Spotted B-75 Beast 17951 | -5/Warlord | Lrg. Botcube completed mutation into treaded form, armed with 4 guns 17986 | -5/Warlord | Rebuked by Warlord 18023 | -5/Warlord | Spotted B-86 Titan 18026 | -5/Warlord | Spotted B-75 Beast 18052 | -5/Warlord | Spotted Executioner 18091 | -5/Warlord | Build established: Scavenger-Tank 18093 | -5/Warlord | Spotted Striker 18125 | -5/Warlord | Identified exit to Proximity Caves 18184 | -5/Warlord | Entered Proximity Caves 18184 | -4/Proximity Caves | Accompanied by 3 allies 18185 | -4/Proximity Caves | Identified exit to Factory 18438 | -4/Proximity Caves | Learned 12 Research zone layouts 18498 | -4/Proximity Caves | Build established: Scavenger-Skirmisher 18660 | -4/Proximity Caves | Spotted B-86 Titan 19458 | -4/Proximity Caves | Entered Factory 19458 | -4/Factory | Accompanied by 3 allies 19458 | -4/Factory | Evolved 2 slots: Weapon x2 19459 | -4/Factory | Identified exit to Research 19756 | -4/Factory | Build established: Scavenger-Executioner 19879 | -4/Factory | Found Quantum Capacitor 20241 | -4/Factory | Lost 4 parts (1u3w) 20716 | -4/Factory | Entered Research 20716 | -3/Research | Evolved 2 slots: Propulsion x1, Utility x1 20717 | -3/Research | Identified exit to Quarantine 20718 | -3/Research | Identified exit to Research 20718 | -3/Research | Identified exit to Armory 20721 | -3/Research | Loaded intel: 25 terminal locations 20916 | -3/Research | Revision forces began assault on 0b10 20930 | -3/Research | Met up with Revision 17++ 21146 | -3/Research | Spotted B-90 Cyclops 21348 | -3/Research | Entered Quarantine 21399 | -3/Quarantine | Found Alien Artifact 21472 | -3/Quarantine | Found Alien Artifact 21472 | -3/Quarantine | Identified Phase Redirector 21540 | -3/Quarantine | Found Alien Impact Weapon 21540 | -3/Quarantine | Identified Core Stripper 21591 | -3/Quarantine | Found Alien Energy Cannon 21591 | -3/Quarantine | Identified Core Cannon 21858 | -3/Quarantine | Garrison activated, responded to threat 22064 | -3/Quarantine | Cryocooling Duct disabled 22079 | -3/Quarantine | Ambient heat levels rising (+20) 22079 | -3/Quarantine | Non-combat units ordered to evacuate 22107 | -3/Quarantine | Discovered exit to Research (range 7) 22161 | -3/Quarantine | System corruption reached 10% 22229 | -3/Quarantine | Found Alien Reactor 22238 | -3/Quarantine | Identified Matter Drive 22409 | -3/Quarantine | Found Alien Artifact 22410 | -3/Quarantine | Identified Terrabomb 22410 | -3/Quarantine | Used Terrabomb 22423 | -3/Quarantine | Found Terrabomb 22428 | -3/Quarantine | Identified Core Reset Matrix 22428 | -3/Quarantine | Used Core Reset Matrix 22432 | -3/Quarantine | Detected hypermatrix surge 22432 | -3/Quarantine | Sensed 10 artifacts in vicinity 22441 | -3/Quarantine | Found Terrabomb 22507 | -3/Quarantine | Discovered exit to Research (range 15) 22610 | -3/Quarantine | Found Transdimensional Reconstructor 22615 | -3/Quarantine | Found Hpw. Transdimensional Reconstructor 22618 | -3/Quarantine | Found Hpw. Transdimensional Reconstructor 22634 | -3/Quarantine | Found Dimensional Node Initializer 22726 | -3/Quarantine | Met incapacitated Sigix Warrior 22726 | -3/Quarantine | Lockdown squad dispatched 22736 | -3/Quarantine | Acquired the access code to the Sigix quarantine chamber 22741 | -3/Quarantine | Unlocked Sigix quarantine chamber 22749 | -3/Quarantine | Found Sigix Containment Pod 22788 | -3/Quarantine | Found Subatomic Replicator 22904 | -3/Quarantine | Spotted Lightning 22912 | -3/Quarantine | Spotted Lightning 22914 | -3/Quarantine | Warped through subspace 22921 | -3/Quarantine | Garrison activated, responded to threat 22925 | -3/Quarantine | Warped through subspace 22926 | -3/Quarantine | Core integrity fell below 50% 22947 | -3/Quarantine | Lost 3 parts (1u2w) 23040 | -3/Quarantine | Used Subatomic Replicator to create Supercharged TR 23060 | -3/Quarantine | Warped through subspace 23098 | -3/Quarantine | First assault squad dispatched 23119 | -3/Quarantine | Entered Research 23119 | -2/Research | Evolved 2 slots: Propulsion x2 23601 | -2/Research | Lost 6 parts (2n1u3w) 23633 | -2/Research | System corruption reached 10% 23709 | -2/Research | Core integrity fell below 50% 23741 | -2/Research | Emitted hypermatrix ping 23746 | -2/Research | Assembled emerged from beneath the floor 23752 | -2/Research | Lost 18 parts (5p4n3u6w) 23859 | -2/Research | Discovered new exit (range 9) 23873 | -2/Research | Identified exit to Access 23882 | -2/Research | Entered Access 23882 | -1/Access | Evolved 2 slots: Power x1, Propulsion x1 23898 | -1/Access | Lost 6 allies 23929 | -1/Access | Identified exit to Surface 24223 | -1/Access | Energy Cycler disabled 24529 | -1/Access | Lost 4 parts (2p2n) 24675 | -1/Access | Lost 16 parts (2p3n2u9w) 24698 | -1/Access | Core integrity fell below 50% 24712 | -1/Access | Used Terrabomb 24717 | -1/Access | Spotted B-99 Colossus 24718 | -1/Access | Spotted B-99 Colossus 24740 | -1/Access | Emitted hypermatrix ping 24745 | -1/Access | Assembled emerged from beneath the floor 24761 | -1/Access | Core integrity fell below 20% 24781 | -1/Access | Destroyed by P-80 Master with Gamma Rifle Last Messages --------------- 24757_ Penetrated by Slug. 24757_ Slug penetrates Reinforced Barrier. 24759_ Slug penetrates Sealed Heavy Doors. 24760_ Penetrated by Slug. 24760_ Slug penetrates Reinforced Barrier. 24760_ Penetrated by Slug. 24760_ Acquired 7 matter. 24763_ Slug penetrates Sealed Heavy Doors. 24764_ B-99 Colossus exits siege mode. 24765_ Slug penetrates Reinforced Barrier. 24765_ Slug penetrates Sealed Heavy Doors. 24775_ Field Propulsion Array destroyed. 24776_ Slug penetrates Sealed Heavy Doors. 24777_ Slammed into Sealed Heavy Doors. 24777_ Enh. Optical Array broken. 24777_ Destabilizing: Short circuit. 24777_ Exp. Signal Interpreter broken. 24777_ Destabilizing: Short circuit. 24779_ B-99 Colossus activates siege mode. 24779_ Slug penetrates Sealed Heavy Doors. Map ----- +----------------------------------------------------+ | ?????????????????????????????????????????????????? | | ?????????????????????????????????????????????????? | | ?????????????????????????????????????????????????? | | ?????????????????????????????????????????????????? | | ?????????????????????????????????????????????????? | | ?????????????????????????????????????????????????? | | ?????????????????????????????????????????????????? | | ?????????????????????????????????????????????????? | | ?????????????????????????????????????????????????? | | ?????????????????????????????????????????????????? | | ?????????????????????????????????????????????????? | | ?????????????????????????????????????????????????? | | ?????????????????????????????????????????????????? | | ?????????????????????????????????????????????????? | | ?????????????????????????????????????????????????? | | ?????????????????????????????????????????????????? | | ?????????????????????????????????????????????????? | | ?????????????????????????????????????????????????? | | ?????????????????????????????????????????????????? | | ????????????????????